[Event "Early-Titled-Tuesday-Blitz-March-12-2024"]
[Site "Chess.com"]
[Date "2024.03.12"]
[Round "6"]
[White "Felix-Rose"]
[Black "ChelsieMonica"]
[Result "1-0"]
[WhiteElo "2271"]
[BlackElo "2527"]
[TimeControl "180+1"]
[EndTime "9:07:35 PDT"]
[Termination "Felix-Rose won by resignation"]

1. d4 {[%clk 0:02:59.9]} 1... Nf6 {[%clk 0:02:59.7]} 2. Nc3 {[%clk 0:03:00.1]}
2... d5 {[%clk 0:02:59.1]} 3. Bf4 {[%clk 0:03:00.2]} 3... g6 {[%clk 0:02:57]} 4.
e3 {[%clk 0:02:57.8]} 4... Bg7 {[%clk 0:02:57.5]} 5. Bd3 {[%clk 0:02:45.9]} 5...
O-O {[%clk 0:02:55.9]} 6. h4 {[%clk 0:02:45.8]} 6... c5 {[%clk 0:02:49.2]} 7. h5
{[%clk 0:02:42.8]} 7... Bg4 {[%clk 0:02:49]} 8. Be2 {[%clk 0:02:41.8]} 8... gxh5
{[%clk 0:02:45.1]} 9. Bxg4 {[%clk 0:02:35]} 9... hxg4 {[%clk 0:02:46]} 10. dxc5
{[%clk 0:02:29.2]} 10... Nc6 {[%clk 0:02:37.4]} 11. Qd3 {[%clk 0:02:07.4]} 11...
e5 {[%clk 0:02:27.8]} 12. Bg5 {[%clk 0:02:07.5]} 12... e4 {[%clk 0:02:28.1]} 13.
Qd2 {[%clk 0:02:03.4]} 13... Re8 {[%clk 0:02:17.5]} 14. O-O-O {[%clk 0:02:02.5]}
14... d4 {[%clk 0:02:16]} 15. exd4 {[%clk 0:01:59.1]} 15... Nb4 {[%clk
0:02:12.7]} 16. d5 {[%clk 0:01:48.3]} 16... e3 {[%clk 0:01:59.8]} 17. fxe3
{[%clk 0:01:41.9]} 17... Qa5 {[%clk 0:01:56.7]} 18. a3 {[%clk 0:01:22.1]} 18...
Rac8 {[%clk 0:01:35.1]} 19. Kb1 {[%clk 0:01:02.4]} 19... Na6 {[%clk 0:01:26.9]}
20. Bxf6 {[%clk 0:00:53.7]} 20... Bxf6 {[%clk 0:01:25.8]} 21. Ne4 {[%clk
0:00:51.3]} 21... Qd8 {[%clk 0:01:19.5]} 22. Nxf6+ {[%clk 0:00:50.2]} 22... Qxf6
{[%clk 0:01:20.4]} 23. Qd3 {[%clk 0:00:38.6]} 23... Qg7 {[%clk 0:01:18.3]} 24.
b4 {[%clk 0:00:36.1]} 24... Red8 {[%clk 0:00:47]} 25. Ne2 {[%clk 0:00:29.9]}
25... Nc7 {[%clk 0:00:46.7]} 26. d6 {[%clk 0:00:28.4]} 26... Ne6 {[%clk
0:00:47]} 27. Nd4 {[%clk 0:00:22.9]} 27... Nxd4 {[%clk 0:00:19.8]} 28. Qxd4
{[%clk 0:00:23.8]} 28... b6 {[%clk 0:00:18.5]} 29. Qxg7+ {[%clk 0:00:22.1]}
29... Kxg7 {[%clk 0:00:19.4]} 30. Rd5 {[%clk 0:00:19.1]} 30... bxc5 {[%clk
0:00:19.3]} 31. bxc5 {[%clk 0:00:19]} 31... f6 {[%clk 0:00:17.5]} 32. Rh4 {[%clk
0:00:17.7]} 32... Rc6 {[%clk 0:00:17]} 33. Rxg4+ {[%clk 0:00:17.6]} 33... Kf7
{[%clk 0:00:17.9]} 34. Re4 {[%clk 0:00:16]} 34... Rb8+ {[%clk 0:00:17.4]} 35.
Kc1 {[%clk 0:00:15.9]} 35... Rd8 {[%clk 0:00:17]} 36. Re7+ {[%clk 0:00:15.3]}
36... Kg6 {[%clk 0:00:17.6]} 37. d7 {[%clk 0:00:13.7]} 37... Rc7 {[%clk
0:00:14.6]} 38. c6 {[%clk 0:00:12.4]} 38... Rxc6 {[%clk 0:00:14.4]} 39. Re8
{[%clk 0:00:11.5]} 39... Rxd7 {[%clk 0:00:13.6]} 40. Rxd7 {[%clk 0:00:11.5]}
40... h5 {[%clk 0:00:14.5]} 41. Rg8+ {[%clk 0:00:11.3]} 41... Kf5 {[%clk
0:00:14.5]} 42. Rh7 {[%clk 0:00:11.4]} 42... h4 {[%clk 0:00:13.7]} 43. Rxh4
{[%clk 0:00:11.5]} 43... Rc3 {[%clk 0:00:14.4]} 44. Rf4+ {[%clk 0:00:11.3]}
44... Ke6 {[%clk 0:00:14.5]} 45. Re8+ {[%clk 0:00:11.6]} 45... Kf7 {[%clk
0:00:14.3]} 46. Rc8 {[%clk 0:00:10.1]} 46... Rxc8 {[%clk 0:00:13.8]} 47. g4
{[%clk 0:00:09.4]} 47... Ke6 {[%clk 0:00:14.1]} 48. Ra4 {[%clk 0:00:08.5]} 48...
Rc7 {[%clk 0:00:13.7]} 49. Ra6+ {[%clk 0:00:08]} 49... Ke5 {[%clk 0:00:13.9]}
50. Ra5+ {[%clk 0:00:07.7]} 50... Ke4 {[%clk 0:00:14]} 51. Rf5 {[%clk
0:00:07.5]} 51... Kxe3 {[%clk 0:00:11.5]} 52. Rxf6 {[%clk 0:00:07.6]} 52... Rg7
{[%clk 0:00:11.1]} 53. Ra6 {[%clk 0:00:06.7]} 53... Kd4 {[%clk 0:00:10.5]} 54.
g5 {[%clk 0:00:06.3]} 54... Kc5 {[%clk 0:00:09.3]} 55. g6 {[%clk 0:00:06.9]}
55... Kb5 {[%clk 0:00:09.8]} 56. Rf6 {[%clk 0:00:07]} 56... a5 {[%clk
0:00:08.8]} 57. Kb2 {[%clk 0:00:06.9]} 57... Kc4 {[%clk 0:00:09.4]} 58. Rc6+
{[%clk 0:00:05.7]} 58... Kb5 {[%clk 0:00:09.3]} 59. Rf6 {[%clk 0:00:06.3]} 59...
Kc4 {[%clk 0:00:10.2]} 60. Kc1 {[%clk 0:00:05.9]} 60... Kb5 {[%clk 0:00:08.1]}
61. Kd2 {[%clk 0:00:06]} 61... Ka4 {[%clk 0:00:08.6]} 62. Ra6 {[%clk 0:00:06.2]}
62... Kxa3 {[%clk 0:00:07.9]} 63. Rxa5+ {[%clk 0:00:06.7]} 63... Kb4 {[%clk
0:00:08.8]} 64. Rg5 {[%clk 0:00:07]} 64... Kc4 {[%clk 0:00:09.3]} 65. Ke3 {[%clk
0:00:07.7]} 65... Re7+ {[%clk 0:00:06.8]} 66. Kf4 {[%clk 0:00:08.1]} 66... Rg7
{[%clk 0:00:07.4]} 67. Kf5 {[%clk 0:00:08.3]} 67... Kc3 {[%clk 0:00:08]} 68. Kf6
{[%clk 0:00:09]} 68... Rc7 {[%clk 0:00:08.7]} 69. g7 {[%clk 0:00:09.3]} 69...
Kxc2 {[%clk 0:00:09.3]} 70. g8=Q {[%clk 0:00:09.5]} 70... Rc3 {[%clk 0:00:09.5]}
71. Rg2+ {[%clk 0:00:09.6]} 71... Kd3 {[%clk 0:00:09.7]} 72. Qg6+ {[%clk
0:00:09.7]} 1-0

[Event "Early-Titled-Tuesday-Blitz-March-12-2024"]
[Site "Chess.com"]
[Date "2024.03.12"]
[Round "6"]
[White "Yan_Dyomin2010"]
[Black "crazyluzhinTh3"]
[Result "0-1"]
[WhiteElo "2714"]
[BlackElo "2580"]
[TimeControl "180+1"]
[EndTime "9:07:40 PDT"]
[Termination "crazyluzhinTh3 won by resignation"]

1. e4 {[%clk 0:02:59]} 1... d6 {[%clk 0:02:59.9]} 2. d4 {[%clk 0:02:58.8]} 2...
Nf6 {[%clk 0:03:00.6]} 3. Nc3 {[%clk 0:02:59.2]} 3... g6 {[%clk 0:03:00.8]} 4.
Nf3 {[%clk 0:02:57.5]} 4... Bg7 {[%clk 0:03:01.1]} 5. h3 {[%clk 0:02:58.1]} 5...
O-O {[%clk 0:03:01.3]} 6. Be3 {[%clk 0:02:58.8]} 6... a6 {[%clk 0:02:53.8]} 7.
Qd2 {[%clk 0:02:51.8]} 7... b5 {[%clk 0:02:51.2]} 8. Bd3 {[%clk 0:02:51.3]} 8...
Bb7 {[%clk 0:02:50.3]} 9. a3 {[%clk 0:02:46.6]} 9... Nc6 {[%clk 0:02:50]} 10.
O-O {[%clk 0:02:35.8]} 10... e5 {[%clk 0:02:49.4]} 11. dxe5 {[%clk 0:02:09.7]}
11... Nxe5 {[%clk 0:02:49.3]} 12. Nxe5 {[%clk 0:02:08.9]} 12... dxe5 {[%clk
0:02:50.2]} 13. Bc5 {[%clk 0:02:04.3]} 13... Re8 {[%clk 0:02:49.2]} 14. Rad1
{[%clk 0:02:03.3]} 14... Nh5 {[%clk 0:02:48.2]} 15. Be2 {[%clk 0:01:51.8]} 15...
Nf4 {[%clk 0:02:46.1]} 16. Bg4 {[%clk 0:01:41.6]} 16... Qg5 {[%clk 0:02:35.2]}
17. Kh2 {[%clk 0:01:30.6]} 17... Rad8 {[%clk 0:02:24.9]} 18. Qe3 {[%clk
0:01:30.2]} 18... h5 {[%clk 0:01:46.9]} 19. Bf3 {[%clk 0:01:28.5]} 19... Bc8
{[%clk 0:01:46.6]} 20. Nd5 {[%clk 0:01:08.4]} 20... c6 {[%clk 0:01:40.3]} 21.
Ne7+ {[%clk 0:01:05.6]} 21... Kh7 {[%clk 0:01:38.6]} 22. Rxd8 {[%clk 0:01:02.5]}
22... Rxd8 {[%clk 0:01:39.5]} 23. Nxc8 {[%clk 0:01:02.7]} 23... Rxc8 {[%clk
0:01:40]} 24. Rd1 {[%clk 0:00:57.9]} 24... Qf6 {[%clk 0:01:33.7]} 25. Qb3 {[%clk
0:00:39.4]} 25... Ne6 {[%clk 0:01:32.2]} 26. Be3 {[%clk 0:00:36.8]} 26... Rd8
{[%clk 0:01:23.9]} 27. Rxd8 {[%clk 0:00:36]} 27... Qxd8 {[%clk 0:01:24.8]} 28.
c3 {[%clk 0:00:31.8]} 28... Bh6 {[%clk 0:01:21.4]} 29. Bxh6 {[%clk 0:00:31.9]}
29... Kxh6 {[%clk 0:01:22.3]} 30. Qc2 {[%clk 0:00:31.9]} 30... Kg7 {[%clk
0:01:19.9]} 31. g3 {[%clk 0:00:31.6]} 31... h4 {[%clk 0:01:19.4]} 32. Kg2 {[%clk
0:00:29.1]} 32... hxg3 {[%clk 0:01:18.6]} 33. fxg3 {[%clk 0:00:30]} 33... Qg5
{[%clk 0:01:17.8]} 34. h4 {[%clk 0:00:24.8]} 34... Qe3 {[%clk 0:01:17.3]} 35.
Qf2 {[%clk 0:00:16.3]} 35... Qd3 {[%clk 0:01:06.2]} 36. Qe2 {[%clk 0:00:11.9]}
36... Qb1 {[%clk 0:01:06.1]} 37. b4 {[%clk 0:00:11.7]} 37... Qc1 {[%clk
0:01:04.1]} 38. Qd3 {[%clk 0:00:11.3]} 38... Qxa3 {[%clk 0:01:01.2]} 39. Bg4
{[%clk 0:00:11.9]} 39... Qb2+ {[%clk 0:00:59]} 40. Kh3 {[%clk 0:00:11.1]} 40...
Nf8 {[%clk 0:00:54.4]} 41. Qe3 {[%clk 0:00:10.6]} 41... Qb1 {[%clk 0:00:51.4]}
42. Kh2 {[%clk 0:00:09.3]} 42... Qc2+ {[%clk 0:00:50.8]} 43. Kh3 {[%clk
0:00:09.8]} 43... Qb1 {[%clk 0:00:50.9]} 44. Kh2 {[%clk 0:00:10.2]} 44... Qf1
{[%clk 0:00:51.2]} 45. h5 {[%clk 0:00:08.6]} 45... gxh5 {[%clk 0:00:45.1]} 46.
Bxh5 {[%clk 0:00:09.5]} 46... Ne6 {[%clk 0:00:45.2]} 47. Bg4 {[%clk 0:00:09.5]}
47... Nf8 {[%clk 0:00:41.2]} 48. Qg5+ {[%clk 0:00:08.4]} 48... Ng6 {[%clk
0:00:41.6]} 49. Qe3 {[%clk 0:00:09]} 49... Qc4 {[%clk 0:00:38.1]} 50. Bf5 {[%clk
0:00:09.1]} 50... Qf1 {[%clk 0:00:37.1]} 51. Bh3 {[%clk 0:00:08.8]} 51... Qf6
{[%clk 0:00:37.7]} 52. Bf5 {[%clk 0:00:09.1]} 52... Ne7 {[%clk 0:00:36.9]} 53.
g4 {[%clk 0:00:09.5]} 53... Qh4+ {[%clk 0:00:36.1]} 54. Kg2 {[%clk 0:00:07.5]}
54... Ng6 {[%clk 0:00:36.2]} 55. Bxg6 {[%clk 0:00:06.8]} 55... Kxg6 {[%clk
0:00:36.4]} 56. Qf3 {[%clk 0:00:06.7]} 56... Qf6 {[%clk 0:00:34.8]} 57. Qh3
{[%clk 0:00:05.7]} 57... Qf4 {[%clk 0:00:33.6]} 58. Qh5+ {[%clk 0:00:04.5]}
58... Kg7 {[%clk 0:00:34.1]} 59. Kh3 {[%clk 0:00:03.5]} 59... Qf3+ {[%clk
0:00:32.9]} 60. Kh2 {[%clk 0:00:02.5]} 60... Qxe4 {[%clk 0:00:33.1]} 61. Qg5+
{[%clk 0:00:02.6]} 61... Kf8 {[%clk 0:00:33.4]} 62. Qd8+ {[%clk 0:00:03.1]}
62... Kg7 {[%clk 0:00:34]} 63. Qg5+ {[%clk 0:00:04]} 63... Kh7 {[%clk
0:00:34.1]} 64. Qh5+ {[%clk 0:00:04.3]} 64... Kg8 {[%clk 0:00:34.7]} 65. Qg5+
{[%clk 0:00:04.8]} 65... Qg6 {[%clk 0:00:35.2]} 66. Qxe5 {[%clk 0:00:05]} 66...
Qxg4 {[%clk 0:00:35.1]} 67. Qe8+ {[%clk 0:00:05.5]} 67... Kg7 {[%clk 0:00:34.6]}
68. Qxc6 {[%clk 0:00:06.4]} 68... Qe2+ {[%clk 0:00:31.3]} 69. Kg3 {[%clk
0:00:06.7]} 69... Qe5+ {[%clk 0:00:30.6]} 70. Kg2 {[%clk 0:00:07.1]} 70... Qe6
{[%clk 0:00:29.6]} 71. Qc5 {[%clk 0:00:06]} 71... Kg6 {[%clk 0:00:26.7]} 72. Qa7
{[%clk 0:00:02.7]} 72... Kf5 {[%clk 0:00:26.3]} 73. Kf2 {[%clk 0:00:02.8]} 73...
Kf4 {[%clk 0:00:18.5]} 74. Qd4+ {[%clk 0:00:02.8]} 74... Kf5 {[%clk 0:00:18.4]}
75. Qc5+ {[%clk 0:00:02.8]} 75... Kg6 {[%clk 0:00:18.1]} 76. Qa7 {[%clk
0:00:02.4]} 76... f5 {[%clk 0:00:18]} 77. Qc5 {[%clk 0:00:02.1]} 77... Kg5
{[%clk 0:00:17.2]} 78. Qa7 {[%clk 0:00:02.7]} 78... Kg4 {[%clk 0:00:16.5]} 79.
Qc5 {[%clk 0:00:03.3]} 79... f4 {[%clk 0:00:15.9]} 80. Qd4 {[%clk 0:00:03.6]}
80... Qc4 {[%clk 0:00:14.7]} 81. Qg7+ {[%clk 0:00:04.1]} 81... Kf5 {[%clk
0:00:14.5]} 82. Qf8+ {[%clk 0:00:03.8]} 82... Ke4 {[%clk 0:00:15]} 83. Qe7+
{[%clk 0:00:03.9]} 83... Kd3 {[%clk 0:00:14.8]} 84. Qf6 {[%clk 0:00:04.5]} 84...
Kc2 {[%clk 0:00:14.6]} 85. Kf3 {[%clk 0:00:04.5]} 85... Qxc3+ {[%clk 0:00:14.3]}
0-1

[Event "Early-Titled-Tuesday-Blitz-March-12-2024"]
[Site "Chess.com"]
[Date "2024.03.12"]
[Round "6"]
[White "Hamisandwich"]
[Black "szachuspl"]
[Result "1/2-1/2"]
[WhiteElo "2710"]
[BlackElo "2544"]
[TimeControl "180+1"]
[EndTime "9:08:05 PDT"]
[Termination "Game drawn by stalemate"]

1. c4 {[%clk 0:02:58.8]} 1... e5 {[%clk 0:02:59.6]} 2. Nc3 {[%clk 0:02:54.6]}
2... Bb4 {[%clk 0:02:59.7]} 3. Qb3 {[%clk 0:02:53.1]} 3... Bxc3 {[%clk
0:02:59.7]} 4. Qxc3 {[%clk 0:02:53.8]} 4... Nc6 {[%clk 0:03:00.1]} 5. b4 {[%clk
0:02:52.9]} 5... d6 {[%clk 0:02:59.6]} 6. b5 {[%clk 0:02:52]} 6... Nce7 {[%clk
0:02:59.5]} 7. g3 {[%clk 0:02:50.2]} 7... Nf6 {[%clk 0:02:59.4]} 8. Bg2 {[%clk
0:02:50.3]} 8... O-O {[%clk 0:02:59.7]} 9. Bb2 {[%clk 0:02:50.5]} 9... a6 {[%clk
0:03:00]} 10. a4 {[%clk 0:02:45.1]} 10... axb5 {[%clk 0:03:00.1]} 11. cxb5
{[%clk 0:02:45.3]} 11... c6 {[%clk 0:02:49.6]} 12. Nf3 {[%clk 0:02:43.3]} 12...
cxb5 {[%clk 0:02:46.6]} 13. axb5 {[%clk 0:02:44.2]} 13... Rxa1+ {[%clk
0:02:46.2]} 14. Bxa1 {[%clk 0:02:45.1]} 14... Qb6 {[%clk 0:02:46.5]} 15. Qb2
{[%clk 0:02:25.3]} 15... Bd7 {[%clk 0:02:44.6]} 16. d3 {[%clk 0:02:15]} 16...
Qxb5 {[%clk 0:02:41.1]} 17. Nd2 {[%clk 0:02:12.8]} 17... Qxb2 {[%clk 0:02:31.8]}
18. Bxb2 {[%clk 0:02:13.7]} 18... Bc6 {[%clk 0:02:32]} 19. e4 {[%clk 0:02:01.8]}
19... Bb5 {[%clk 0:02:29.7]} 20. Ke2 {[%clk 0:01:51.8]} 20... Rc8 {[%clk
0:02:29.2]} 21. Rb1 {[%clk 0:01:51.9]} 21... Ba6 {[%clk 0:02:24.3]} 22. h3
{[%clk 0:01:48.7]} 22... h5 {[%clk 0:02:21.2]} 23. Ke3 {[%clk 0:01:47.6]} 23...
Nd7 {[%clk 0:02:15.8]} 24. d4 {[%clk 0:01:45.8]} 24... f6 {[%clk 0:02:09.6]} 25.
h4 {[%clk 0:01:38.4]} 25... Nb6 {[%clk 0:01:37.1]} 26. Bh3 {[%clk 0:01:36.5]}
26... Rc7 {[%clk 0:01:35.9]} 27. Be6+ {[%clk 0:01:36.2]} 27... Kh7 {[%clk
0:01:36]} 28. f4 {[%clk 0:01:32.9]} 28... Na4 {[%clk 0:01:25.2]} 29. Ba1 {[%clk
0:01:32.5]} 29... Nc3 {[%clk 0:01:21.5]} 30. Rb6 {[%clk 0:01:07.4]} 30... Nd1+
{[%clk 0:01:13.8]} 31. Kf3 {[%clk 0:01:07.4]} 31... Rc1 {[%clk 0:01:04.9]} 32.
Rb1 {[%clk 0:01:03.5]} 32... Rxb1 {[%clk 0:01:00.7]} 33. Nxb1 {[%clk 0:01:04.4]}
33... Nc6 {[%clk 0:01:00.7]} 34. dxe5 {[%clk 0:00:59.8]} 34... dxe5 {[%clk
0:01:00.2]} 35. Bd5 {[%clk 0:00:55.7]} 35... Nd4+ {[%clk 0:00:50.1]} 36. Bxd4
{[%clk 0:00:52.7]} 36... exd4 {[%clk 0:00:51]} 37. e5 {[%clk 0:00:53.6]} 37...
fxe5 {[%clk 0:00:51]} 38. fxe5 {[%clk 0:00:54.1]} 38... Kg6 {[%clk 0:00:50.8]}
39. Be4+ {[%clk 0:00:42.4]} 39... Kf7 {[%clk 0:00:48.7]} 40. Bd5+ {[%clk
0:00:42.9]} 40... Ke7 {[%clk 0:00:48.8]} 41. Kf4 {[%clk 0:00:31.1]} 41... Nc3
{[%clk 0:00:43.5]} 42. Be4 {[%clk 0:00:28.9]} 42... Be2 {[%clk 0:00:35.3]} 43.
Nd2 {[%clk 0:00:27.2]} 43... b5 {[%clk 0:00:35.2]} 44. Bf3 {[%clk 0:00:20.9]}
44... d3 {[%clk 0:00:26.7]} 45. Ke3 {[%clk 0:00:14.1]} 45... Ke6 {[%clk
0:00:22.3]} 46. Kd4 {[%clk 0:00:13.8]} 46... b4 {[%clk 0:00:20.5]} 47. Bb7
{[%clk 0:00:10.7]} 47... Bg4 {[%clk 0:00:12.6]} 48. Bc8+ {[%clk 0:00:09.3]}
48... Ke7 {[%clk 0:00:12.4]} 49. Bxg4 {[%clk 0:00:10.2]} 49... hxg4 {[%clk
0:00:13]} 50. Kc4 {[%clk 0:00:11.1]} 50... Ne2 {[%clk 0:00:11.8]} 51. Kxd3
{[%clk 0:00:10.4]} 51... Nxg3 {[%clk 0:00:12.1]} 52. Ke3 {[%clk 0:00:05.2]}
52... Nf5+ {[%clk 0:00:10.1]} 53. Kf4 {[%clk 0:00:05.7]} 53... Nxh4 {[%clk
0:00:10.6]} 54. Kxg4 {[%clk 0:00:06.6]} 54... Ng6 {[%clk 0:00:11.3]} 55. Kf5
{[%clk 0:00:06.9]} 55... Nh4+ {[%clk 0:00:11.8]} 56. Kg5 {[%clk 0:00:06.4]}
56... Ng2 {[%clk 0:00:11.1]} 57. Kg6 {[%clk 0:00:07]} 57... Kf8 {[%clk
0:00:11.5]} 58. Kf5 {[%clk 0:00:05.9]} 58... Ne3+ {[%clk 0:00:11.6]} 59. Ke4
{[%clk 0:00:05.3]} 59... Nd1 {[%clk 0:00:10.4]} 60. Kd5 {[%clk 0:00:03.8]} 60...
Ke7 {[%clk 0:00:10.3]} 61. Kc4 {[%clk 0:00:02.2]} 61... Ke6 {[%clk 0:00:10.9]}
62. Kxb4 {[%clk 0:00:02.7]} 62... Kxe5 {[%clk 0:00:11]} 63. Kc4 {[%clk
0:00:02.9]} 63... Kf4 {[%clk 0:00:11.5]} 64. Kd3 {[%clk 0:00:03.4]} 64... g5
{[%clk 0:00:10.3]} 65. Ke2 {[%clk 0:00:03.9]} 65... Nc3+ {[%clk 0:00:10.8]} 66.
Kf2 {[%clk 0:00:04.5]} 66... Nd5 {[%clk 0:00:09.1]} 67. Nf1 {[%clk 0:00:03.3]}
67... g4 {[%clk 0:00:09]} 68. Kg2 {[%clk 0:00:03.9]} 68... Nf6 {[%clk
0:00:08.4]} 69. Nd2 {[%clk 0:00:03.7]} 69... Nh5 {[%clk 0:00:07.9]} 70. Nf1
{[%clk 0:00:04.2]} 70... Ng7 {[%clk 0:00:07.8]} 71. Ng3 {[%clk 0:00:04.2]} 71...
Ne6 {[%clk 0:00:07.1]} 72. Nh5+ {[%clk 0:00:04.5]} 72... Kg5 {[%clk 0:00:06.8]}
73. Ng3 {[%clk 0:00:05.4]} 73... Nf4+ {[%clk 0:00:06.8]} 74. Kf2 {[%clk
0:00:06.1]} 74... Kh4 {[%clk 0:00:06.8]} 75. Nf5+ {[%clk 0:00:06.1]} 75... Kh3
{[%clk 0:00:07.4]} 76. Ke3 {[%clk 0:00:05.6]} 76... Nh5 {[%clk 0:00:07.2]} 77.
Ke4 {[%clk 0:00:05.4]} 77... Nf6+ {[%clk 0:00:06.8]} 78. Kf4 {[%clk 0:00:05.5]}
78... Nd5+ {[%clk 0:00:07]} 79. Ke4 {[%clk 0:00:05.5]} 79... Nc3+ {[%clk
0:00:07.5]} 80. Ke3 {[%clk 0:00:05.8]} 80... Kh2 {[%clk 0:00:05.9]} 81. Kf4
{[%clk 0:00:05.6]} 81... Kh3 {[%clk 0:00:05.8]} 82. Ke3 {[%clk 0:00:05.6]} 82...
Nd1+ {[%clk 0:00:05.7]} 83. Ke2 {[%clk 0:00:05.2]} 83... Nb2 {[%clk 0:00:05.9]}
84. Ke3 {[%clk 0:00:05.4]} 84... Nc4+ {[%clk 0:00:06.3]} 85. Kf4 {[%clk
0:00:06]} 85... Nb6 {[%clk 0:00:04.5]} 86. Ke3 {[%clk 0:00:06.5]} 86... Nd7
{[%clk 0:00:04]} 87. Kf2 {[%clk 0:00:06.7]} 87... Ne5 {[%clk 0:00:04]} 88. Ke3
{[%clk 0:00:07.3]} 88... Ng6 {[%clk 0:00:03.6]} 89. Kf2 {[%clk 0:00:07.3]} 89...
Nh4 {[%clk 0:00:04.1]} 90. Nxh4 {[%clk 0:00:07.3]} 90... Kxh4 {[%clk 0:00:04.3]}
91. Kg2 {[%clk 0:00:07.6]} 91... g3 {[%clk 0:00:05.2]} 92. Kg1 {[%clk
0:00:08.2]} 92... Kg4 {[%clk 0:00:05.6]} 93. Kg2 {[%clk 0:00:09.1]} 93... Kf4
{[%clk 0:00:06.3]} 94. Kg1 {[%clk 0:00:10]} 94... Kf3 {[%clk 0:00:06.8]} 95. Kf1
{[%clk 0:00:10.6]} 95... Ke3 {[%clk 0:00:06.7]} 96. Kg2 {[%clk 0:00:11.5]} 96...
Kf4 {[%clk 0:00:07.4]} 97. Kg1 {[%clk 0:00:12.3]} 97... Kg5 {[%clk 0:00:07.6]}
98. Kg2 {[%clk 0:00:12.9]} 98... Kh4 {[%clk 0:00:08.3]} 99. Kg1 {[%clk
0:00:13.8]} 99... Kh3 {[%clk 0:00:09]} 100. Kh1 {[%clk 0:00:14.3]} 100... g2+
{[%clk 0:00:09.9]} 101. Kg1 {[%clk 0:00:14.9]} 101... Kg3 {[%clk 0:00:10.8]}
1/2-1/2

[Event "Early-Titled-Tuesday-Blitz-March-12-2024"]
[Site "Chess.com"]
[Date "2024.03.12"]
[Round "7"]
[White "Boliviar"]
[Black "Casper"]
[Result "0-1"]
[WhiteElo "2382"]
[BlackElo "2497"]
[TimeControl "180+1"]
[EndTime "9:12:01 PDT"]
[Termination "Casper won by resignation"]

1. d4 {[%clk 0:03:00.9]} 1... d5 {[%clk 0:02:59.2]} 2. Nf3 {[%clk 0:03:00.9]}
2... Nf6 {[%clk 0:02:59.1]} 3. c4 {[%clk 0:03:01.4]} 3... dxc4 {[%clk 0:03:00]}
4. Nc3 {[%clk 0:03:01.4]} 4... Bg4 {[%clk 0:02:59.9]} 5. Qa4+ {[%clk 0:02:57.9]}
5... Nc6 {[%clk 0:02:58.5]} 6. Ne5 {[%clk 0:02:51.6]} 6... Bd7 {[%clk
0:02:54.6]} 7. Nxd7 {[%clk 0:02:50.9]} 7... Qxd7 {[%clk 0:02:54.1]} 8. e3 {[%clk
0:02:51.2]} 8... e5 {[%clk 0:02:51.4]} 9. dxe5 {[%clk 0:02:34.7]} 9... Nxe5
{[%clk 0:02:52.3]} 10. Qxd7+ {[%clk 0:02:24.5]} 10... Nfxd7 {[%clk 0:02:53.2]}
11. e4 {[%clk 0:02:19.1]} 11... O-O-O {[%clk 0:02:48.3]} 12. Be3 {[%clk
0:02:15.7]} 12... Nc5 {[%clk 0:02:48.2]} 13. Bxc5 {[%clk 0:02:10.1]} 13... Bxc5
{[%clk 0:02:49.1]} 14. Rd1 {[%clk 0:02:07.9]} 14... Bd4 {[%clk 0:02:31.3]} 15.
f4 {[%clk 0:02:02.9]} 15... Ng4 {[%clk 0:02:24.4]} 16. Bxc4 {[%clk 0:01:47.7]}
16... Ne3 {[%clk 0:02:19.7]} 17. Rd2 {[%clk 0:01:39.1]} 17... Nxc4 {[%clk
0:02:17.9]} 0-1

[Event "Early-Titled-Tuesday-Blitz-March-12-2024"]
[Site "Chess.com"]
[Date "2024.03.12"]
[Round "7"]
[White "RandomNoob04"]
[Black "LogoCzar"]
[Result "1-0"]
[WhiteElo "2624"]
[BlackElo "2395"]
[TimeControl "180+1"]
[EndTime "9:12:34 PDT"]
[Termination "RandomNoob04 won by resignation"]

1. e4 {[%clk 0:03:00.9]} 1... f6 {[%clk 0:02:57]} 2. d4 {[%clk 0:02:59.2]} 2...
Kf7 {[%clk 0:02:57]} 3. f4 {[%clk 0:02:53.8]} 3... d6 {[%clk 0:02:57.3]} 4. Nf3
{[%clk 0:02:54]} 4... Ke6 {[%clk 0:02:57.7]} 5. d5+ {[%clk 0:02:14]} 5... Kd7
{[%clk 0:02:57.8]} 6. Nd4 {[%clk 0:02:14.9]} 6... Ke8 {[%clk 0:02:57.9]} 7. Bb5+
{[%clk 0:02:10.7]} 7... c6 {[%clk 0:02:55]} 8. dxc6 {[%clk 0:02:08.5]} 8... Kf7
{[%clk 0:02:54.5]} 9. Bc4+ {[%clk 0:02:04.5]} 9... e6 {[%clk 0:02:52.7]} 10.
cxb7 {[%clk 0:02:04.5]} 10... Bxb7 {[%clk 0:02:46.1]} 11. Nxe6 {[%clk 0:02:03]}
11... Qc8 {[%clk 0:02:41.8]} 12. Bb3 {[%clk 0:01:51.5]} 12... Ke7 {[%clk
0:02:40]} 13. Nxf8 {[%clk 0:01:48.5]} 13... Kxf8 {[%clk 0:02:38.9]} 14. Nc3
{[%clk 0:01:43.8]} 14... Ne7 {[%clk 0:02:38.9]} 15. Be3 {[%clk 0:01:42.4]} 15...
Nd7 {[%clk 0:02:38.6]} 16. Qxd6 {[%clk 0:01:38.7]} 16... a5 {[%clk 0:02:28.9]}
17. O-O-O {[%clk 0:01:36.5]} 17... Ke8 {[%clk 0:02:25.6]} 18. Be6 {[%clk
0:01:30.9]} 18... Bc6 {[%clk 0:02:25.7]} 19. Bc5 {[%clk 0:01:25.7]} 19... Ng6
{[%clk 0:02:20.1]} 20. f5 {[%clk 0:01:23.1]} 20... Ra6 {[%clk 0:02:10.5]} 21.
fxg6 {[%clk 0:01:20.4]} 1-0

[Event "Early-Titled-Tuesday-Blitz-March-12-2024"]
[Site "Chess.com"]
[Date "2024.03.12"]
[Round "7"]
[White "KnightmareJoker"]
[Black "margarita_2703"]
[Result "1-0"]
[WhiteElo "2230"]
[BlackElo "2372"]
[TimeControl "180+1"]
[EndTime "9:13:25 PDT"]
[Termination "KnightmareJoker won by resignation"]

1. e4 {[%clk 0:03:00.9]} 1... a6 {[%clk 0:02:59.5]} 2. d4 {[%clk 0:03:00.6]}
2... d6 {[%clk 0:02:53.6]} 3. c4 {[%clk 0:02:57.6]} 3... g6 {[%clk 0:02:54.1]}
4. Nf3 {[%clk 0:02:53.1]} 4... Bg7 {[%clk 0:02:54]} 5. Nc3 {[%clk 0:02:51.7]}
5... Nd7 {[%clk 0:02:53.7]} 6. Be3 {[%clk 0:02:50.8]} 6... e5 {[%clk 0:02:52]}
7. d5 {[%clk 0:02:49.2]} 7... h5 {[%clk 0:02:47.9]} 8. Be2 {[%clk 0:02:33.7]}
8... Nh6 {[%clk 0:02:46.4]} 9. Qd2 {[%clk 0:02:31.9]} 9... Ng4 {[%clk
0:02:45.5]} 10. Bg5 {[%clk 0:02:26.3]} 10... f6 {[%clk 0:02:45.1]} 11. Be3
{[%clk 0:02:20.2]} 11... O-O {[%clk 0:02:34.6]} 12. h3 {[%clk 0:02:17.9]} 12...
Nxe3 {[%clk 0:02:35]} 13. Qxe3 {[%clk 0:02:18.1]} 13... a5 {[%clk 0:02:30.2]}
14. g4 {[%clk 0:02:07.7]} 14... f5 {[%clk 0:02:26.9]} 15. gxf5 {[%clk
0:01:57.9]} 15... gxf5 {[%clk 0:02:27.8]} 16. Rg1 {[%clk 0:01:42.9]} 16... f4
{[%clk 0:02:27.2]} 17. Qd2 {[%clk 0:01:30.5]} 17... Nc5 {[%clk 0:02:26.5]} 18.
Ng5 {[%clk 0:01:25]} 18... Qf6 {[%clk 0:02:16.3]} 19. Bxh5 {[%clk 0:01:16.7]}
19... Bd7 {[%clk 0:02:11.4]} 20. f3 {[%clk 0:01:08.8]} 20... Be8 {[%clk
0:02:10.4]} 21. Bxe8 {[%clk 0:01:05.6]} 21... Raxe8 {[%clk 0:02:11.3]} 22. h4
{[%clk 0:01:04.5]} 22... Qh6 {[%clk 0:02:09.3]} 23. Rg4 {[%clk 0:00:58.1]} 23...
Kh8 {[%clk 0:02:07.9]} 24. O-O-O {[%clk 0:00:55.7]} 24... Bf6 {[%clk 0:02:06.5]}
25. Rdg1 {[%clk 0:00:54.7]} 25... Rg8 {[%clk 0:02:05.6]} 26. Nf7+ {[%clk
0:00:54.2]} 1-0